{"text_format":"3","workbook":"xlsx","n_sheets":1,"sheets":["Kalender"],"not_rendered":{"defined_names":79},"read":"whole","date_system":"1900"}

{"sheet":"Kalender","index":0,"n_rows":167,"n_cols":8,"rows_kept":167,"merged":[[0,2,0,4],[12,3,12,7],[13,3,13,7],[14,2,14,4],[26,3,26,7],[27,3,27,7],[28,2,28,4],[40,3,40,7],[41,3,41,7],[42,2,42,4],[54,3,54,7],[55,3,55,7],[56,2,56,4],[68,3,68,7],[69,3,69,7],[70,2,70,4],[82,3,82,7],[83,3,83,7],[84,2,84,4],[96,3,96,7],[97,3,97,7],[98,2,98,4],[110,3,110,7],[111,3,111,7],[112,2,112,4],[124,3,124,7],[125,3,125,7],[126,2,126,4],[138,3,138,7],[139,3,139,7],[140,2,140,4],[152,3,152,7],[153,3,153,7],[154,2,154,4],[166,3,166,7],[167,3,167,7]]}
[null,{"$f":"YEAR(TODAY())","v":2019},"August"]
[null,"MONTAG",{"$f":"UPPER(TEXT(C3,\"TTTT\"))","v":"TTTT"},"TTTT","TTTT","TTTT","TTTT","TTTT"]
[null,{"$f":"Tage+1+DATE(Kalender1Jahr,Kalender1MonatOption,1)-WEEKDAY(DATE(Kalender1Jahr,Kalender1MonatOption,1),WochentagOption)","v":"2019-07-29"},"2019-07-30","2019-07-31","2019-08-01","2019-08-02","2019-08-03","2019-08-04"]
[]
[null,{"$f":"Tage+8+DATE(Kalender1Jahr,Kalender1MonatOption,1)-WEEKDAY(DATE(Kalender1Jahr,Kalender1MonatOption,1),WochentagOption)","v":"2019-08-05"},"2019-08-06","2019-08-07","2019-08-08","2019-08-09","2019-08-10","2019-08-11"]
[{"$nulls":4},"Eltern-Lehrer-Konferenzen 19:00 Uhr"]
[null,{"$f":"Tage+15+DATE(Kalender1Jahr,Kalender1MonatOption,1)-WEEKDAY(DATE(Kalender1Jahr,Kalender1MonatOption,1),WochentagOption)","v":"2019-08-12"},"2019-08-13","2019-08-14","2019-08-15","2019-08-16","2019-08-17","2019-08-18"]
[]
[null,{"$f":"Tage+22+DATE(Kalender1Jahr,Kalender1MonatOption,1)-WEEKDAY(DATE(Kalender1Jahr,Kalender1MonatOption,1),WochentagOption)","v":"2019-08-19"},"2019-08-20","2019-08-21","2019-08-22","2019-08-23","2019-08-24","2019-08-25"]
[]
[null,{"$f":"Tage+29+DATE(Kalender1Jahr,Kalender1MonatOption,1)-WEEKDAY(DATE(Kalender1Jahr,Kalender1MonatOption,1),WochentagOption)","v":"2019-08-26"},"2019-08-27","2019-08-28","2019-08-29","2019-08-30","2019-08-31","2019-09-01"]
[]
[null,{"$f":"Tage+36+DATE(Kalender1Jahr,Kalender1MonatOption,1)-WEEKDAY(DATE(Kalender1Jahr,Kalender1MonatOption,1),WochentagOption)","v":"2019-09-02"},"2019-09-03","Notizen:"]
[]
[null,{"$f":"YEAR(DATE(Kalender1Jahr,Kalender1MonatOption+1,1))","v":2019},{"$f":"TEXT(DATE(Kalender1Jahr,Kalender1MonatOption+1,1),\"MMMM\")","v":"September"}]
[null,{"$f":"UPPER(TEXT(B17,\"TTTT\"))","v":"TTTT"},"TTTT","TTTT","TTTT","TTTT","TTTT","TTTT"]
[null,{"$f":"Tage+1+DATE(Kalender2Jahr,Kalender2MonatOption,1)-WEEKDAY(DATE(Kalender2Jahr,Kalender2MonatOption,1),WochentagOption)","v":"2019-08-26"},"2019-08-27","2019-08-28","2019-08-29","2019-08-30","2019-08-31","2019-09-01"]
[]
[null,{"$f":"Tage+8+DATE(Kalender2Jahr,Kalender2MonatOption,1)-WEEKDAY(DATE(Kalender2Jahr,Kalender2MonatOption,1),WochentagOption)","v":"2019-09-02"},"2019-09-03","2019-09-04","2019-09-05","2019-09-06","2019-09-07","2019-09-08"]
[]
[null,{"$f":"Tage+15+DATE(Kalender2Jahr,Kalender2MonatOption,1)-WEEKDAY(DATE(Kalender2Jahr,Kalender2MonatOption,1),WochentagOption)","v":"2019-09-09"},"2019-09-10","2019-09-11","2019-09-12","2019-09-13","2019-09-14","2019-09-15"]
[]
[null,{"$f":"Tage+22+DATE(Kalender2Jahr,Kalender2MonatOption,1)-WEEKDAY(DATE(Kalender2Jahr,Kalender2MonatOption,1),WochentagOption)","v":"2019-09-16"},"2019-09-17","2019-09-18","2019-09-19","2019-09-20","2019-09-21","2019-09-22"]
[]
[null,{"$f":"Tage+29+DATE(Kalender2Jahr,Kalender2MonatOption,1)-WEEKDAY(DATE(Kalender2Jahr,Kalender2MonatOption,1),WochentagOption)","v":"2019-09-23"},"2019-09-24","2019-09-25","2019-09-26","2019-09-27","2019-09-28","2019-09-29"]
[]
[null,{"$f":"Tage+36+DATE(Kalender2Jahr,Kalender2MonatOption,1)-WEEKDAY(DATE(Kalender2Jahr,Kalender2MonatOption,1),WochentagOption)","v":"2019-09-30"},"2019-10-01","Notizen:"]
[]
[null,{"$f":"YEAR(DATE(Kalender2Jahr,Kalender2MonatOption+1,1))","v":2019},{"$f":"TEXT(DATE(Kalender2Jahr,Kalender2MonatOption+1,1),\"MMMM\")","v":"October"}]
[null,{"$f":"UPPER(TEXT(B31,\"TTTT\"))","v":{"$error":"#N/A"}},{"$error":"#N/A"},{"$error":"#N/A"},{"$error":"#N/A"},{"$error":"#N/A"},{"$error":"#N/A"},{"$error":"#N/A"}]
[null,{"$f":"Tage+1+DATE(Kalender3Jahr,Kalender3MonatOption,1)-WEEKDAY(DATE(Kalender3Jahr,Kalender3MonatOption,1),WochentagOption)","v":{"$error":"#N/A"}},{"$error":"#N/A"},{"$error":"#N/A"},{"$error":"#N/A"},{"$error":"#N/A"},{"$error":"#N/A"},{"$error":"#N/A"}]
[]
[null,{"$f":"Tage+8+DATE(Kalender3Jahr,Kalender3MonatOption,1)-WEEKDAY(DATE(Kalender3Jahr,Kalender3MonatOption,1),WochentagOption)","v":{"$error":"#N/A"}},{"$error":"#N/A"},{"$error":"#N/A"},{"$error":"#N/A"},{"$error":"#N/A"},{"$error":"#N/A"},{"$error":"#N/A"}]
[]
[null,{"$f":"Tage+15+DATE(Kalender3Jahr,Kalender3MonatOption,1)-WEEKDAY(DATE(Kalender3Jahr,Kalender3MonatOption,1),WochentagOption)","v":{"$error":"#N/A"}},{"$error":"#N/A"},{"$error":"#N/A"},{"$error":"#N/A"},{"$error":"#N/A"},{"$error":"#N/A"},{"$error":"#N/A"}]
[]
[null,{"$f":"Tage+22+DATE(Kalender3Jahr,Kalender3MonatOption,1)-WEEKDAY(DATE(Kalender3Jahr,Kalender3MonatOption,1),WochentagOption)","v":{"$error":"#N/A"}},{"$error":"#N/A"},{"$error":"#N/A"},{"$error":"#N/A"},{"$error":"#N/A"},{"$error":"#N/A"},{"$error":"#N/A"}]
[]
[null,{"$f":"Tage+29+DATE(Kalender3Jahr,Kalender3MonatOption,1)-WEEKDAY(DATE(Kalender3Jahr,Kalender3MonatOption,1),WochentagOption)","v":{"$error":"#N/A"}},{"$error":"#N/A"},{"$error":"#N/A"},{"$error":"#N/A"},{"$error":"#N/A"},{"$error":"#N/A"},{"$error":"#N/A"}]
[]
[null,{"$f":"Tage+36+DATE(Kalender3Jahr,Kalender3MonatOption,1)-WEEKDAY(DATE(Kalender3Jahr,Kalender3MonatOption,1),WochentagOption)","v":{"$error":"#N/A"}},{"$error":"#N/A"},"Notizen:"]
[]
[null,{"$f":"YEAR(DATE(Kalender3Jahr,Kalender3MonatOption+1,1))","v":{"$error":"#N/A"}},{"$f":"TEXT(DATE(Kalender3Jahr,Kalender3MonatOption+1,1),\"MMMM\")","v":{"$error":"#N/A"}}]
[null,{"$f":"UPPER(TEXT(B45,\"TTTT\"))","v":{"$error":"#N/A"}},{"$error":"#N/A"},{"$error":"#N/A"},{"$error":"#N/A"},{"$error":"#N/A"},{"$error":"#N/A"},{"$error":"#N/A"}]
[null,{"$f":"Tage+1+DATE(Kalender4Jahr,Kalender4MonatOption,1)-WEEKDAY(DATE(Kalender4Jahr,Kalender4MonatOption,1),WochentagOption)","v":{"$error":"#N/A"}},{"$error":"#N/A"},{"$error":"#N/A"},{"$error":"#N/A"},{"$error":"#N/A"},{"$error":"#N/A"},{"$error":"#N/A"}]
[]
[null,{"$f":"Tage+8+DATE(Kalender4Jahr,Kalender4MonatOption,1)-WEEKDAY(DATE(Kalender4Jahr,Kalender4MonatOption,1),WochentagOption)","v":{"$error":"#N/A"}},{"$error":"#N/A"},{"$error":"#N/A"},{"$error":"#N/A"},{"$error":"#N/A"},{"$error":"#N/A"},{"$error":"#N/A"}]
[]
[null,{"$f":"Tage+15+DATE(Kalender4Jahr,Kalender4MonatOption,1)-WEEKDAY(DATE(Kalender4Jahr,Kalender4MonatOption,1),WochentagOption)","v":{"$error":"#N/A"}},{"$error":"#N/A"},{"$error":"#N/A"},{"$error":"#N/A"},{"$error":"#N/A"},{"$error":"#N/A"},{"$error":"#N/A"}]
[]
[null,{"$f":"Tage+22+DATE(Kalender4Jahr,Kalender4MonatOption,1)-WEEKDAY(DATE(Kalender4Jahr,Kalender4MonatOption,1),WochentagOption)","v":{"$error":"#N/A"}},{"$error":"#N/A"},{"$error":"#N/A"},{"$error":"#N/A"},{"$error":"#N/A"},{"$error":"#N/A"},{"$error":"#N/A"}]
[]
[null,{"$f":"Tage+29+DATE(Kalender4Jahr,Kalender4MonatOption,1)-WEEKDAY(DATE(Kalender4Jahr,Kalender4MonatOption,1),WochentagOption)","v":{"$error":"#N/A"}},{"$error":"#N/A"},{"$error":"#N/A"},{"$error":"#N/A"},{"$error":"#N/A"},{"$error":"#N/A"},{"$error":"#N/A"}]
[]
[null,{"$f":"Tage+36+DATE(Kalender4Jahr,Kalender4MonatOption,1)-WEEKDAY(DATE(Kalender4Jahr,Kalender4MonatOption,1),WochentagOption)","v":{"$error":"#N/A"}},{"$error":"#N/A"},"Notizen:"]
[]
[null,{"$f":"YEAR(DATE(Kalender4Jahr,Kalender4MonatOption+1,1))","v":{"$error":"#N/A"}},{"$f":"TEXT(DATE(Kalender4Jahr,Kalender4MonatOption+1,1),\"MMMM\")","v":{"$error":"#N/A"}}]
[null,{"$f":"UPPER(TEXT(B59,\"TTTT\"))","v":{"$error":"#N/A"}},{"$error":"#N/A"},{"$error":"#N/A"},{"$error":"#N/A"},{"$error":"#N/A"},{"$error":"#N/A"},{"$error":"#N/A"}]
[null,{"$f":"Tage+1+DATE(Kalender5Jahr,Kalender5MonatOption,1)-WEEKDAY(DATE(Kalender5Jahr,Kalender5MonatOption,1),WochentagOption)","v":{"$error":"#N/A"}},{"$error":"#N/A"},{"$error":"#N/A"},{"$error":"#N/A"},{"$error":"#N/A"},{"$error":"#N/A"},{"$error":"#N/A"}]
[]
[null,{"$f":"Tage+8+DATE(Kalender5Jahr,Kalender5MonatOption,1)-WEEKDAY(DATE(Kalender5Jahr,Kalender5MonatOption,1),WochentagOption)","v":{"$error":"#N/A"}},{"$error":"#N/A"},{"$error":"#N/A"},{"$error":"#N/A"},{"$error":"#N/A"},{"$error":"#N/A"},{"$error":"#N/A"}]
[]
[null,{"$f":"Tage+15+DATE(Kalender5Jahr,Kalender5MonatOption,1)-WEEKDAY(DATE(Kalender5Jahr,Kalender5MonatOption,1),WochentagOption)","v":{"$error":"#N/A"}},{"$error":"#N/A"},{"$error":"#N/A"},{"$error":"#N/A"},{"$error":"#N/A"},{"$error":"#N/A"},{"$error":"#N/A"}]
[]
[null,{"$f":"Tage+22+DATE(Kalender5Jahr,Kalender5MonatOption,1)-WEEKDAY(DATE(Kalender5Jahr,Kalender5MonatOption,1),WochentagOption)","v":{"$error":"#N/A"}},{"$error":"#N/A"},{"$error":"#N/A"},{"$error":"#N/A"},{"$error":"#N/A"},{"$error":"#N/A"},{"$error":"#N/A"}]
[]
[null,{"$f":"Tage+29+DATE(Kalender5Jahr,Kalender5MonatOption,1)-WEEKDAY(DATE(Kalender5Jahr,Kalender5MonatOption,1),WochentagOption)","v":{"$error":"#N/A"}},{"$error":"#N/A"},{"$error":"#N/A"},{"$error":"#N/A"},{"$error":"#N/A"},{"$error":"#N/A"},{"$error":"#N/A"}]
[]
[null,{"$f":"Tage+36+DATE(Kalender5Jahr,Kalender5MonatOption,1)-WEEKDAY(DATE(Kalender5Jahr,Kalender5MonatOption,1),WochentagOption)","v":{"$error":"#N/A"}},{"$error":"#N/A"},"Notizen:"]
[]
[null,{"$f":"YEAR(DATE(Kalender5Jahr,Kalender5MonatOption+1,1))","v":{"$error":"#N/A"}},{"$f":"TEXT(DATE(Kalender5Jahr,Kalender5MonatOption+1,1),\"MMMM\")","v":{"$error":"#N/A"}}]
[null,{"$f":"UPPER(TEXT(B73,\"TTTT\"))","v":{"$error":"#N/A"}},{"$error":"#N/A"},{"$error":"#N/A"},{"$error":"#N/A"},{"$error":"#N/A"},{"$error":"#N/A"},{"$error":"#N/A"}]
[null,{"$f":"Tage+1+DATE(Kalender6Jahr,Kalender6MonatOption,1)-WEEKDAY(DATE(Kalender6Jahr,Kalender6MonatOption,1),WochentagOption)","v":{"$error":"#N/A"}},{"$error":"#N/A"},{"$error":"#N/A"},{"$error":"#N/A"},{"$error":"#N/A"},{"$error":"#N/A"},{"$error":"#N/A"}]
[]
[null,{"$f":"Tage+8+DATE(Kalender6Jahr,Kalender6MonatOption,1)-WEEKDAY(DATE(Kalender6Jahr,Kalender6MonatOption,1),WochentagOption)","v":{"$error":"#N/A"}},{"$error":"#N/A"},{"$error":"#N/A"},{"$error":"#N/A"},{"$error":"#N/A"},{"$error":"#N/A"},{"$error":"#N/A"}]
[]
[null,{"$f":"Tage+15+DATE(Kalender6Jahr,Kalender6MonatOption,1)-WEEKDAY(DATE(Kalender6Jahr,Kalender6MonatOption,1),WochentagOption)","v":{"$error":"#N/A"}},{"$error":"#N/A"},{"$error":"#N/A"},{"$error":"#N/A"},{"$error":"#N/A"},{"$error":"#N/A"},{"$error":"#N/A"}]
[]
[null,{"$f":"Tage+22+DATE(Kalender6Jahr,Kalender6MonatOption,1)-WEEKDAY(DATE(Kalender6Jahr,Kalender6MonatOption,1),WochentagOption)","v":{"$error":"#N/A"}},{"$error":"#N/A"},{"$error":"#N/A"},{"$error":"#N/A"},{"$error":"#N/A"},{"$error":"#N/A"},{"$error":"#N/A"}]
[]
[null,{"$f":"Tage+29+DATE(Kalender6Jahr,Kalender6MonatOption,1)-WEEKDAY(DATE(Kalender6Jahr,Kalender6MonatOption,1),WochentagOption)","v":{"$error":"#N/A"}},{"$error":"#N/A"},{"$error":"#N/A"},{"$error":"#N/A"},{"$error":"#N/A"},{"$error":"#N/A"},{"$error":"#N/A"}]
[]
[null,{"$f":"Tage+36+DATE(Kalender6Jahr,Kalender6MonatOption,1)-WEEKDAY(DATE(Kalender6Jahr,Kalender6MonatOption,1),WochentagOption)","v":{"$error":"#N/A"}},{"$error":"#N/A"},"Notizen:"]
[]
[null,{"$f":"YEAR(DATE(Kalender6Jahr,Kalender6MonatOption+1,1))","v":{"$error":"#N/A"}},{"$f":"TEXT(DATE(Kalender6Jahr,Kalender6MonatOption+1,1),\"MMMM\")","v":{"$error":"#N/A"}}]
[null,{"$f":"UPPER(TEXT(B87,\"TTTT\"))","v":{"$error":"#N/A"}},{"$error":"#N/A"},{"$error":"#N/A"},{"$error":"#N/A"},{"$error":"#N/A"},{"$error":"#N/A"},{"$error":"#N/A"}]
[null,{"$f":"Tage+1+DATE(Kalender7Jahr,Kalender7MonatOption,1)-WEEKDAY(DATE(Kalender7Jahr,Kalender7MonatOption,1),WochentagOption)","v":{"$error":"#N/A"}},{"$error":"#N/A"},{"$error":"#N/A"},{"$error":"#N/A"},{"$error":"#N/A"},{"$error":"#N/A"},{"$error":"#N/A"}]
[]
[null,{"$f":"Tage+8+DATE(Kalender7Jahr,Kalender7MonatOption,1)-WEEKDAY(DATE(Kalender7Jahr,Kalender7MonatOption,1),WochentagOption)","v":{"$error":"#N/A"}},{"$error":"#N/A"},{"$error":"#N/A"},{"$error":"#N/A"},{"$error":"#N/A"},{"$error":"#N/A"},{"$error":"#N/A"}]
[]
[null,{"$f":"Tage+15+DATE(Kalender7Jahr,Kalender7MonatOption,1)-WEEKDAY(DATE(Kalender7Jahr,Kalender7MonatOption,1),WochentagOption)","v":{"$error":"#N/A"}},{"$error":"#N/A"},{"$error":"#N/A"},{"$error":"#N/A"},{"$error":"#N/A"},{"$error":"#N/A"},{"$error":"#N/A"}]
[]
[null,{"$f":"Tage+22+DATE(Kalender7Jahr,Kalender7MonatOption,1)-WEEKDAY(DATE(Kalender7Jahr,Kalender7MonatOption,1),WochentagOption)","v":{"$error":"#N/A"}},{"$error":"#N/A"},{"$error":"#N/A"},{"$error":"#N/A"},{"$error":"#N/A"},{"$error":"#N/A"},{"$error":"#N/A"}]
[]
[null,{"$f":"Tage+29+DATE(Kalender7Jahr,Kalender7MonatOption,1)-WEEKDAY(DATE(Kalender7Jahr,Kalender7MonatOption,1),WochentagOption)","v":{"$error":"#N/A"}},{"$error":"#N/A"},{"$error":"#N/A"},{"$error":"#N/A"},{"$error":"#N/A"},{"$error":"#N/A"},{"$error":"#N/A"}]
[]
[null,{"$f":"Tage+36+DATE(Kalender7Jahr,Kalender7MonatOption,1)-WEEKDAY(DATE(Kalender7Jahr,Kalender7MonatOption,1),WochentagOption)","v":{"$error":"#N/A"}},{"$error":"#N/A"},"Notizen:"]
[]
[null,{"$f":"YEAR(DATE(Kalender7Jahr,Kalender7MonatOption+1,1))","v":{"$error":"#N/A"}},{"$f":"TEXT(DATE(Kalender7Jahr,Kalender7MonatOption+1,1),\"MMMM\")","v":{"$error":"#N/A"}}]
[null,{"$f":"UPPER(TEXT(B101,\"TTTT\"))","v":{"$error":"#N/A"}},{"$error":"#N/A"},{"$error":"#N/A"},{"$error":"#N/A"},{"$error":"#N/A"},{"$error":"#N/A"},{"$error":"#N/A"}]
[null,{"$f":"Tage+1+DATE(Kalender8Jahr,Kalender8MonatOption,1)-WEEKDAY(DATE(Kalender8Jahr,Kalender8MonatOption,1),WochentagOption)","v":{"$error":"#N/A"}},{"$error":"#N/A"},{"$error":"#N/A"},{"$error":"#N/A"},{"$error":"#N/A"},{"$error":"#N/A"},{"$error":"#N/A"}]
[]
[null,{"$f":"Tage+8+DATE(Kalender8Jahr,Kalender8MonatOption,1)-WEEKDAY(DATE(Kalender8Jahr,Kalender8MonatOption,1),WochentagOption)","v":{"$error":"#N/A"}},{"$error":"#N/A"},{"$error":"#N/A"},{"$error":"#N/A"},{"$error":"#N/A"},{"$error":"#N/A"},{"$error":"#N/A"}]
[]
[null,{"$f":"Tage+15+DATE(Kalender8Jahr,Kalender8MonatOption,1)-WEEKDAY(DATE(Kalender8Jahr,Kalender8MonatOption,1),WochentagOption)","v":{"$error":"#N/A"}},{"$error":"#N/A"},{"$error":"#N/A"},{"$error":"#N/A"},{"$error":"#N/A"},{"$error":"#N/A"},{"$error":"#N/A"}]
[]
[null,{"$f":"Tage+22+DATE(Kalender8Jahr,Kalender8MonatOption,1)-WEEKDAY(DATE(Kalender8Jahr,Kalender8MonatOption,1),WochentagOption)","v":{"$error":"#N/A"}},{"$error":"#N/A"},{"$error":"#N/A"},{"$error":"#N/A"},{"$error":"#N/A"},{"$error":"#N/A"},{"$error":"#N/A"}]
[]
[null,{"$f":"Tage+29+DATE(Kalender8Jahr,Kalender8MonatOption,1)-WEEKDAY(DATE(Kalender8Jahr,Kalender8MonatOption,1),WochentagOption)","v":{"$error":"#N/A"}},{"$error":"#N/A"},{"$error":"#N/A"},{"$error":"#N/A"},{"$error":"#N/A"},{"$error":"#N/A"},{"$error":"#N/A"}]
[]
[null,{"$f":"Tage+36+DATE(Kalender8Jahr,Kalender8MonatOption,1)-WEEKDAY(DATE(Kalender8Jahr,Kalender8MonatOption,1),WochentagOption)","v":{"$error":"#N/A"}},{"$error":"#N/A"},"Notizen:"]
[]
[null,{"$f":"YEAR(DATE(Kalender8Jahr,Kalender8MonatOption+1,1))","v":{"$error":"#N/A"}},{"$f":"TEXT(DATE(Kalender8Jahr,Kalender8MonatOption+1,1),\"MMMM\")","v":{"$error":"#N/A"}}]
[null,{"$f":"UPPER(TEXT(B115,\"TTTT\"))","v":{"$error":"#N/A"}},{"$error":"#N/A"},{"$error":"#N/A"},{"$error":"#N/A"},{"$error":"#N/A"},{"$error":"#N/A"},{"$error":"#N/A"}]
[null,{"$f":"Tage+1+DATE(Kalender9Jahr,Kalender9MonatOption,1)-WEEKDAY(DATE(Kalender9Jahr,Kalender9MonatOption,1),WochentagOption)","v":{"$error":"#N/A"}},{"$error":"#N/A"},{"$error":"#N/A"},{"$error":"#N/A"},{"$error":"#N/A"},{"$error":"#N/A"},{"$error":"#N/A"}]
[]
[null,{"$f":"Tage+8+DATE(Kalender9Jahr,Kalender9MonatOption,1)-WEEKDAY(DATE(Kalender9Jahr,Kalender9MonatOption,1),WochentagOption)","v":{"$error":"#N/A"}},{"$error":"#N/A"},{"$error":"#N/A"},{"$error":"#N/A"},{"$error":"#N/A"},{"$error":"#N/A"},{"$error":"#N/A"}]
[]
[null,{"$f":"Tage+15+DATE(Kalender9Jahr,Kalender9MonatOption,1)-WEEKDAY(DATE(Kalender9Jahr,Kalender9MonatOption,1),WochentagOption)","v":{"$error":"#N/A"}},{"$error":"#N/A"},{"$error":"#N/A"},{"$error":"#N/A"},{"$error":"#N/A"},{"$error":"#N/A"},{"$error":"#N/A"}]
[]
[null,{"$f":"Tage+22+DATE(Kalender9Jahr,Kalender9MonatOption,1)-WEEKDAY(DATE(Kalender9Jahr,Kalender9MonatOption,1),WochentagOption)","v":{"$error":"#N/A"}},{"$error":"#N/A"},{"$error":"#N/A"},{"$error":"#N/A"},{"$error":"#N/A"},{"$error":"#N/A"},{"$error":"#N/A"}]
[]
[null,{"$f":"Tage+29+DATE(Kalender9Jahr,Kalender9MonatOption,1)-WEEKDAY(DATE(Kalender9Jahr,Kalender9MonatOption,1),WochentagOption)","v":{"$error":"#N/A"}},{"$error":"#N/A"},{"$error":"#N/A"},{"$error":"#N/A"},{"$error":"#N/A"},{"$error":"#N/A"},{"$error":"#N/A"}]
[]
[null,{"$f":"Tage+36+DATE(Kalender9Jahr,Kalender9MonatOption,1)-WEEKDAY(DATE(Kalender9Jahr,Kalender9MonatOption,1),WochentagOption)","v":{"$error":"#N/A"}},{"$error":"#N/A"},"Notizen:"]
[]
[null,{"$f":"YEAR(DATE(Kalender9Jahr,Kalender9MonatOption+1,1))","v":{"$error":"#N/A"}},{"$f":"TEXT(DATE(Kalender9Jahr,Kalender9MonatOption+1,1),\"MMMM\")","v":{"$error":"#N/A"}}]
[null,{"$f":"UPPER(TEXT(B129,\"TTTT\"))","v":{"$error":"#N/A"}},{"$error":"#N/A"},{"$error":"#N/A"},{"$error":"#N/A"},{"$error":"#N/A"},{"$error":"#N/A"},{"$error":"#N/A"}]
[null,{"$f":"Tage+1+DATE(Kalender10Jahr,Kalender10MonatOption,1)-WEEKDAY(DATE(Kalender10Jahr,Kalender10MonatOption,1),WochentagOption)","v":{"$error":"#N/A"}},{"$error":"#N/A"},{"$error":"#N/A"},{"$error":"#N/A"},{"$error":"#N/A"},{"$error":"#N/A"},{"$error":"#N/A"}]
[]
[null,{"$f":"Tage+8+DATE(Kalender10Jahr,Kalender10MonatOption,1)-WEEKDAY(DATE(Kalender10Jahr,Kalender10MonatOption,1),WochentagOption)","v":{"$error":"#N/A"}},{"$error":"#N/A"},{"$error":"#N/A"},{"$error":"#N/A"},{"$error":"#N/A"},{"$error":"#N/A"},{"$error":"#N/A"}]
[]
[null,{"$f":"Tage+15+DATE(Kalender10Jahr,Kalender10MonatOption,1)-WEEKDAY(DATE(Kalender10Jahr,Kalender10MonatOption,1),WochentagOption)","v":{"$error":"#N/A"}},{"$error":"#N/A"},{"$error":"#N/A"},{"$error":"#N/A"},{"$error":"#N/A"},{"$error":"#N/A"},{"$error":"#N/A"}]
[]
[null,{"$f":"Tage+22+DATE(Kalender10Jahr,Kalender10MonatOption,1)-WEEKDAY(DATE(Kalender10Jahr,Kalender10MonatOption,1),WochentagOption)","v":{"$error":"#N/A"}},{"$error":"#N/A"},{"$error":"#N/A"},{"$error":"#N/A"},{"$error":"#N/A"},{"$error":"#N/A"},{"$error":"#N/A"}]
[]
[null,{"$f":"Tage+29+DATE(Kalender10Jahr,Kalender10MonatOption,1)-WEEKDAY(DATE(Kalender10Jahr,Kalender10MonatOption,1),WochentagOption)","v":{"$error":"#N/A"}},{"$error":"#N/A"},{"$error":"#N/A"},{"$error":"#N/A"},{"$error":"#N/A"},{"$error":"#N/A"},{"$error":"#N/A"}]
[]
[null,{"$f":"Tage+36+DATE(Kalender10Jahr,Kalender10MonatOption,1)-WEEKDAY(DATE(Kalender10Jahr,Kalender10MonatOption,1),WochentagOption)","v":{"$error":"#N/A"}},{"$error":"#N/A"},"Notizen:"]
[]
[null,{"$f":"YEAR(DATE(Kalender10Jahr,Kalender10MonatOption+1,1))","v":{"$error":"#N/A"}},{"$f":"TEXT(DATE(Kalender10Jahr,Kalender10MonatOption+1,1),\"MMMM\")","v":{"$error":"#N/A"}}]
[null,{"$f":"UPPER(TEXT(B143,\"TTTT\"))","v":{"$error":"#N/A"}},{"$error":"#N/A"},{"$error":"#N/A"},{"$error":"#N/A"},{"$error":"#N/A"},{"$error":"#N/A"},{"$error":"#N/A"}]
[null,{"$f":"Tage+1+DATE(Kalender11Jahr,Kalender11MonatOption,1)-WEEKDAY(DATE(Kalender11Jahr,Kalender11MonatOption,1),WochentagOption)","v":{"$error":"#N/A"}},{"$error":"#N/A"},{"$error":"#N/A"},{"$error":"#N/A"},{"$error":"#N/A"},{"$error":"#N/A"},{"$error":"#N/A"}]
[]
[null,{"$f":"Tage+8+DATE(Kalender11Jahr,Kalender11MonatOption,1)-WEEKDAY(DATE(Kalender11Jahr,Kalender11MonatOption,1),WochentagOption)","v":{"$error":"#N/A"}},{"$error":"#N/A"},{"$error":"#N/A"},{"$error":"#N/A"},{"$error":"#N/A"},{"$error":"#N/A"},{"$error":"#N/A"}]
[]
[null,{"$f":"Tage+15+DATE(Kalender11Jahr,Kalender11MonatOption,1)-WEEKDAY(DATE(Kalender11Jahr,Kalender11MonatOption,1),WochentagOption)","v":{"$error":"#N/A"}},{"$error":"#N/A"},{"$error":"#N/A"},{"$error":"#N/A"},{"$error":"#N/A"},{"$error":"#N/A"},{"$error":"#N/A"}]
[]
[null,{"$f":"Tage+22+DATE(Kalender11Jahr,Kalender11MonatOption,1)-WEEKDAY(DATE(Kalender11Jahr,Kalender11MonatOption,1),WochentagOption)","v":{"$error":"#N/A"}},{"$error":"#N/A"},{"$error":"#N/A"},{"$error":"#N/A"},{"$error":"#N/A"},{"$error":"#N/A"},{"$error":"#N/A"}]
[]
[null,{"$f":"Tage+29+DATE(Kalender11Jahr,Kalender11MonatOption,1)-WEEKDAY(DATE(Kalender11Jahr,Kalender11MonatOption,1),WochentagOption)","v":{"$error":"#N/A"}},{"$error":"#N/A"},{"$error":"#N/A"},{"$error":"#N/A"},{"$error":"#N/A"},{"$error":"#N/A"},{"$error":"#N/A"}]
[]
[null,{"$f":"Tage+36+DATE(Kalender11Jahr,Kalender11MonatOption,1)-WEEKDAY(DATE(Kalender11Jahr,Kalender11MonatOption,1),WochentagOption)","v":{"$error":"#N/A"}},{"$error":"#N/A"},"Notizen:"]
[]
[null,{"$f":"YEAR(DATE(Kalender11Jahr,Kalender11MonatOption+1,1))","v":{"$error":"#N/A"}},{"$f":"TEXT(DATE(Kalender11Jahr,Kalender11MonatOption+1,1),\"MMMM\")","v":{"$error":"#N/A"}}]
[null,{"$f":"UPPER(TEXT(B157,\"TTTT\"))","v":{"$error":"#N/A"}},{"$error":"#N/A"},{"$error":"#N/A"},{"$error":"#N/A"},{"$error":"#N/A"},{"$error":"#N/A"},{"$error":"#N/A"}]
[null,{"$f":"Tage+1+DATE(Kalender12Jahr,Kalender12MonatOption,1)-WEEKDAY(DATE(Kalender12Jahr,Kalender12MonatOption,1),WochentagOption)","v":{"$error":"#N/A"}},{"$error":"#N/A"},{"$error":"#N/A"},{"$error":"#N/A"},{"$error":"#N/A"},{"$error":"#N/A"},{"$error":"#N/A"}]
[]
[null,{"$f":"Tage+8+DATE(Kalender12Jahr,Kalender12MonatOption,1)-WEEKDAY(DATE(Kalender12Jahr,Kalender12MonatOption,1),WochentagOption)","v":{"$error":"#N/A"}},{"$error":"#N/A"},{"$error":"#N/A"},{"$error":"#N/A"},{"$error":"#N/A"},{"$error":"#N/A"},{"$error":"#N/A"}]
[]
[null,{"$f":"Tage+15+DATE(Kalender12Jahr,Kalender12MonatOption,1)-WEEKDAY(DATE(Kalender12Jahr,Kalender12MonatOption,1),WochentagOption)","v":{"$error":"#N/A"}},{"$error":"#N/A"},{"$error":"#N/A"},{"$error":"#N/A"},{"$error":"#N/A"},{"$error":"#N/A"},{"$error":"#N/A"}]
[]
[null,{"$f":"Tage+22+DATE(Kalender12Jahr,Kalender12MonatOption,1)-WEEKDAY(DATE(Kalender12Jahr,Kalender12MonatOption,1),WochentagOption)","v":{"$error":"#N/A"}},{"$error":"#N/A"},{"$error":"#N/A"},{"$error":"#N/A"},{"$error":"#N/A"},{"$error":"#N/A"},{"$error":"#N/A"}]
[]
[null,{"$f":"Tage+29+DATE(Kalender12Jahr,Kalender12MonatOption,1)-WEEKDAY(DATE(Kalender12Jahr,Kalender12MonatOption,1),WochentagOption)","v":{"$error":"#N/A"}},{"$error":"#N/A"},{"$error":"#N/A"},{"$error":"#N/A"},{"$error":"#N/A"},{"$error":"#N/A"},{"$error":"#N/A"}]
[]
[null,{"$f":"Tage+36+DATE(Kalender12Jahr,Kalender12MonatOption,1)-WEEKDAY(DATE(Kalender12Jahr,Kalender12MonatOption,1),WochentagOption)","v":{"$error":"#N/A"}},{"$error":"#N/A"},"Notizen:"]